fUSD/lending_fUSD_20250417
["ID","MTS","AMOUNT","RATE_DAILY","PERIOD"]
[358296899,1744901452835,-151.0,0.00139726,120]
[358296900,1744901452850,-247.819424,0.00139726,5]
[358296901,1744901452865,-151.0,0.00139726,120]
[358296902,1744901452879,-151.0,0.00139726,120]
[358296903,1744901452893,-151.0,0.00139726,120]
[358296904,1744901452907,-240.714451,0.00139726,120]
[358296905,1744901452922,-151.0,0.00139726,120]
[358296906,1744901452936,-151.0,0.00139726,120]
[358296907,1744901452953,-151.0,0.00139726,120]
[358296908,1744901452965,-151.0,0.00139726,120]
[358296909,1744901452975,-151.0,0.00139726,120]
[358296910,1744901452985,-151.0,0.00139726,120]
[358296911,1744901452995,-151.0,0.00139726,120]
[358296912,1744901453007,-151.0,0.00139726,120]
[358296913,1744901453017,-242.141794,0.00139726,120]
[358296914,1744901453027,-151.0,0.00139726,120]
[358296915,1744901453036,-151.0,0.00139726,120]
[358296916,1744901453047,-151.0,0.00139726,120]
[358296917,1744901453057,-151.491941,0.00139726,120]
[358296918,1744901453214,-151.0,0.00139726,120]
[358296919,1744901453231,-151.0,0.00139726,120]
[358296920,1744901453243,-151.0,0.00139726,120]
[358296921,1744901453253,-151.0,0.00139726,120]
[358296922,1744901453263,-151.0,0.00139726,120]
[358296923,1744901453274,-151.0,0.00139726,120]
[358296924,1744901453284,-297.331652,0.00139726,120]
[358296925,1744901453295,-151.0,0.00139726,120]
[358296926,1744901453306,-151.0,0.00139726,120]
[358296927,1744901453316,-276.808174,0.00139726,120]
[358296928,1744901453325,-225.011245,0.00139726,120]
[358296929,1744901453335,-151.0,0.00139726,120]
[358296930,1744901453344,-151.0,0.00139726,120]
[358296931,1744901453353,-151.0,0.00139726,120]
[358296932,1744901453363,-151.0,0.00139726,120]
[358296933,1744901453373,-151.0,0.00139726,120]
[358296934,1744901453383,-151.0,0.00139726,120]
[358296935,1744901453394,-151.0,0.00139726,120]
[358296936,1744901453404,-151.0,0.00139726,120]
[358296937,1744901453414,-238.953316,0.00139726,120]
[358296938,1744901453424,-792.015991,0.00139726,120]
[358296939,1744901453434,-792.015991,0.00139726,120]
[358296940,1744901453444,-792.015991,0.00139726,120]
[358296941,1744901453454,-792.015991,0.00139726,120]
[358296942,1744901453463,-792.015991,0.00139726,120]
[358296943,1744901453473,-792.015991,0.00139726,120]
[358296944,1744901453482,-792.015991,0.00139726,120]
[358296945,1744901453492,-792.015991,0.00139726,120]
[358296946,1744901453502,-792.015991,0.00139726,120]
[358296947,1744901453512,-792.015991,0.00139726,120]
[358296948,1744901453522,-792.015991,0.00139726,120]
[358296949,1744901453532,-792.015991,0.00139726,120]
[358296950,1744901453542,-792.015991,0.00139726,120]
[358296951,1744901453551,-151.0,0.00139726,120]
[358296952,1744901453560,-792.015991,0.00139726,120]
[358296953,1744901453570,-792.015991,0.00139726,120]
[358296954,1744901453580,-792.015991,0.00139726,120]
[358296955,1744901453590,-792.015991,0.00139726,120]
[358296956,1744901453600,-792.015992,0.00139726,120]
[358296957,1744901453610,-185.705823,0.00139726,120]
[358296958,1744901453620,-185.705823,0.00139726,120]
[358296959,1744901453629,-185.705823,0.00139726,120]
[358296960,1744901453639,-185.705823,0.00139726,120]
[358296961,1744901453649,-185.705823,0.00139726,120]
[358296962,1744901453658,-185.705823,0.00139726,120]
[358296963,1744901453668,-185.705823,0.00139726,120]
[358296964,1744901453677,-185.705823,0.00139726,120]
[358296965,1744901453687,-185.705823,0.00139726,120]
[358296966,1744901453696,-185.705823,0.00139726,120]
[358296967,1744901453706,-185.705823,0.00139726,120]
[358296968,1744901453716,-185.705823,0.00139726,120]
[358296969,1744901453726,-185.705823,0.00139726,120]
[358296970,1744901453735,-185.705823,0.00139726,120]
[358296971,1744901453745,-185.705823,0.00139726,120]
[358296972,1744901453755,-185.705823,0.00139726,120]
[358296973,1744901453764,-185.705823,0.00139726,120]
[358296974,1744901453774,-151.0,0.00139726,120]
[358296975,1744901453784,-151.0,0.00139726,120]
[358296976,1744901453793,-151.0,0.00139726,120]
[358296977,1744901453803,-151.0,0.00139726,120]
[358296978,1744901453812,-151.0,0.00139726,120]
[358296979,1744901453822,-151.0,0.00139726,120]
[358296980,1744901453831,-151.0,0.00139726,120]
[358296981,1744901453839,-151.0,0.00139726,120]
[358296982,1744901453848,-151.0,0.00139726,120]
[358296983,1744901453857,-151.0,0.00139726,120]
[358296984,1744901453867,-1800.0,0.0014,118]
[358296985,1744901453876,-500.0,0.0014,120]
[358296986,1744901453886,-862.52,0.00147945,120]
[358296987,1744901453896,-500.0,0.00147945,120]
[358296988,1744901453906,-500.0,0.00147945,120]
[358296989,1744901453915,-500.0,0.00147945,120]
[358296990,1744901453924,-500.0,0.00147945,120]
[358296991,1744901453934,-417.3515868,0.00147945,120]
[358296992,1744901453943,-500.0,0.00147945,120]
[358296993,1744901453953,-500.0,0.00147945,120]
[358296994,1744901453963,-517.9,0.00147945,120]
[358296995,1744901453972,-639.87862162,0.00147945,120]
[358296996,1744901453981,-500.0,0.00147945,120]
[358296997,1744901453991,-612.85,0.00149792,120]
[358296998,1744901454000,-500.0,0.00149793,120]
[358296999,1744901454010,-500.0,0.00149793,120]
[358297000,1744901454020,-500.0,0.00149793,120]
[358297001,1744901454030,-784.15,0.00149793,120]
[358297002,1744901454039,-500.0,0.00149793,120]
[358297003,1744901454049,-500.0,0.00149793,120]
[358297004,1744901454059,-500.0,0.00149793,120]
[358297005,1744901454068,-500.0,0.00149793,120]
[358297006,1744901454078,-1000.0,0.00149793,120]
[358297007,1744901454087,-500.0,0.00149793,120]
[358297008,1744901454099,-890.96,0.00149793,120]
[358297009,1744901454108,-500.0,0.00149793,120]
[358297010,1744901454119,-500.0,0.00149793,120]
[358297011,1744901454129,-500.0,0.00149793,120]
[358297012,1744901454138,-500.0,0.00149793,120]
[358297013,1744901454148,-500.0,0.00149793,120]
[358297014,1744901454158,-500.0,0.00149793,120]
[358297015,1744901454167,-500.0,0.00149793,120]
[358297016,1744901454177,-500.0,0.00149793,120]
[358297017,1744901454187,-500.0,0.00149793,120]
[358297018,1744901454199,-564.86,0.00149793,120]
[358297019,1744901454209,-500.0,0.00149793,120]
[358297020,1744901454219,-302.75479266,0.00149793,120]
[358297021,1744901454229,-500.0,0.00149793,120]
[358297022,1744901454239,-500.0,0.00149793,120]
[358297023,1744901454249,-500.0,0.00149793,120]
[358297024,1744901454260,-500.0,0.00149793,120]
[358297025,1744901454271,-500.0,0.00149793,120]
[358297026,1744901454282,-500.0,0.00149793,120]
[358297027,1744901454292,-500.0,0.00149793,120]
[358297028,1744901454302,-500.0,0.00149793,120]
[358297029,1744901454312,-500.0,0.00149793,120]
[358297030,1744901454322,-500.0,0.00149793,120]
[358297031,1744901454333,-214.22470126,0.00149793,120]
[358297032,1744901454343,-500.0,0.00149793,120]
[358297033,1744901454353,-500.0,0.00149793,120]
[358297034,1744901454363,-500.0,0.00149793,120]
[358297035,1744901454375,-500.0,0.00149793,120]
[358297036,1744901454385,-601.54854438,0.00149793,120]
[358297037,1744901454395,-500.0,0.00149793,120]
[358297038,1744901454405,-500.0,0.00149793,120]
[358297039,1744901454416,-455.38,0.00149793,2]
[358297040,1744901454427,-915.72,0.00149793,120]
[358297041,1744901454437,-501.06,0.00149793,120]
[358297042,1744901454446,-903.52,0.00149793,120]
[358297043,1744901454456,-185.38201171,0.00150153,102]
[358297044,1744901454465,-150.0,0.00150178,30]
[358297045,1744901454474,-500.0,0.001555,30]
[358297046,1744901454483,-214.2660339,0.001555,120]
[358297047,1744901454494,-503.50634492,0.001555,100]
[358297048,1744901454503,-862.52,0.00158904,120]
[358297049,1744901454513,-500.0,0.00158904,120]
[358297050,1744901454523,-500.0,0.00158904,120]
[358297051,1744901454532,-500.0,0.00158904,120]
[358297052,1744901454542,-500.0,0.00158904,120]
[358297053,1744901454551,-517.9,0.00158904,120]
[358297054,1744901454561,-500.0,0.00158904,120]
[358297055,1744901454571,-500.0,0.0016,120]
[358297056,1744901454581,-500.0,0.00160752,120]
[358297057,1744901454591,-334.87588938,0.00160752,120]
[358297058,1744901454601,-784.15,0.00160752,120]
[358297059,1744901454611,-500.0,0.00160752,120]
[358297060,1744901454621,-500.0,0.00160752,120]
[358297061,1744901454631,-500.0,0.00160752,120]
[358297062,1744901454640,-500.0,0.00160752,120]
[358297063,1744901454650,-890.96,0.00160752,120]
[358297064,1744901454660,-500.0,0.00160752,120]
[358297065,1744901454669,-500.0,0.00160752,120]
[358297066,1744901454679,-500.0,0.00160752,120]
[358297067,1744901454688,-500.0,0.00160752,120]
[358297068,1744901454698,-500.0,0.00160752,120]
[358297069,1744901454707,-500.0,0.00160752,120]
[358297070,1744901454717,-500.0,0.00160752,120]
[358297071,1744901454727,-500.0,0.00160752,120]
[358297072,1744901454736,-564.86,0.00160752,120]
[358297073,1744901454746,-500.0,0.00160752,120]
[358297074,1744901454756,-500.0,0.00160752,120]
[358297075,1744901454767,-500.0,0.00160752,120]
[358297076,1744901454777,-500.0,0.00160752,120]
[358297077,1744901454787,-599.41,0.00160752,120]
[358297078,1744901454797,-500.0,0.00160752,120]
[358297079,1744901454807,-500.0,0.00160752,120]
[358297080,1744901454817,-500.0,0.00160752,120]
[358297081,1744901454827,-500.0,0.00160752,120]
[358297082,1744901454837,-500.0,0.00160752,120]
[358297083,1744901454847,-500.0,0.00160752,120]
[358297084,1744901454857,-500.0,0.00160752,120]
[358297085,1744901454866,-466.85000001,0.00160752,120]
[358297086,1744901454876,-424.56,0.00160752,120]
[358297087,1744901454886,-915.72,0.00160752,120]
[358297088,1744901454895,-903.52,0.00160752,120]
[358297089,1744901454904,-862.52,0.00169863,120]
[358297090,1744901454914,-500.0,0.00169863,120]
[358297091,1744901454923,-500.0,0.00169863,120]
[358297092,1744901454932,-500.0,0.00169863,120]
[358297093,1744901454942,-500.0,0.00169863,120]
[358297094,1744901454951,-517.9,0.00169863,120]
[358297095,1744901454961,-500.0,0.00169863,120]
[358297096,1744901454971,-784.15,0.00171711,120]
[358297097,1744901454980,-500.0,0.00171711,120]
[358297098,1744901454990,-500.0,0.00171711,120]
[358297099,1744901455000,-500.000001,0.00171711,120]
[358297100,1744901455010,-500.0,0.00171711,120]
[358297101,1744901455020,-890.96,0.00171711,120]
[358297102,1744901455029,-500.0,0.00171711,120]
[358297103,1744901455039,-500.0,0.00171711,120]
[358297104,1744901455049,-500.0,0.00171711,120]
[358297105,1744901455058,-500.0,0.00171711,120]
[358297106,1744901455068,-500.0,0.00171711,120]
[358297107,1744901455078,-500.0,0.00171711,120]
[358297108,1744901455088,-204.09110259,0.00171711,120]
[358297109,1744901455098,-564.86,0.00171711,120]
[358297110,1744901455108,-500.0,0.00171711,120]
[358297111,1744901455117,-500.0,0.00171711,120]
[358297112,1744901455127,-500.0,0.00171711,120]
[358297113,1744901455137,-520.79,0.00171711,120]
[358297114,1744901455148,-500.0,0.00171711,120]
[358297115,1744901455158,-500.0,0.00171711,120]
[358297116,1744901455167,-500.0,0.00171711,120]
[358297117,1744901455178,-500.0,0.00171711,120]
[358297118,1744901455188,-227.85,0.00171711,120]
[358297119,1744901455201,-264.09,0.00171711,120]
[358297120,1744901455212,-282.6061532,0.00171711,120]
[358297121,1744901455225,-915.72,0.00171711,120]
[358297122,1744901455235,-903.52,0.00171711,120]
[358297123,1744901455244,-500.0,0.0018,120]
[358297124,1744901455254,-862.52,0.00180821,120]
[358297125,1744901455265,-500.0,0.00180821,120]
[358297126,1744901455275,-500.0,0.00180821,120]
[358297127,1744901455285,-500.0,0.00180821,120]
[358297128,1744901455295,-500.0,0.00180821,120]
[358297129,1744901455305,-517.9,0.00180821,120]
[358297130,1744901455315,-500.0,0.00180821,120]
[358297131,1744901455325,-784.15,0.0018267,120]
[358297132,1744901455427,-500.0,0.0018267,120]
[358297133,1744901455437,-500.0,0.0018267,120]
[358297134,1744901455447,-500.0,0.0018267,120]
[358297135,1744901455457,-890.96,0.0018267,120]
[358297136,1744901455467,-302.6,0.0018267,120]
[358297137,1744901455477,-500.0,0.0018267,120]
[358297138,1744901455486,-500.0,0.0018267,120]
[358297139,1744901455496,-217.58,0.0018267,120]
[358297140,1744901455507,-500.0,0.0018267,120]
[358297141,1744901455517,-564.86,0.0018267,120]
[358297142,1744901455526,-500.0,0.0018267,120]
[358297143,1744901455536,-500.0,0.0018267,120]
[358297144,1744901455546,-187.91349086,0.0018267,120]
[358297145,1744901455556,-500.0,0.0018267,120]
[358297146,1744901455565,-500.0,0.0018267,120]
[358297147,1744901455575,-298.88,0.0018267,120]
[358297148,1744901455585,-500.0,0.0018267,120]
[358297149,1744901455595,-915.72,0.0018267,120]
[358297150,1744901455604,-903.52,0.0018267,120]
[358297151,1744901455613,-862.52,0.0019178,120]
[358297152,1744901455623,-649.93543909,0.0019178,120]
[358297153,1744901455633,-500.0,0.0019178,120]
[358297154,1744901455642,-326.60058499,0.0019178,120]
[358297155,1744901455652,-606.06,0.0019178,120]
[358297156,1744901455662,-517.9,0.0019178,120]
[358297157,1744901455671,-500.0,0.0019178,120]
[358297158,1744901455681,-491.6666,0.0019178,120]
[358297159,1744901455690,-500.0,0.0019178,120]
[358297160,1744901455700,-22827.95652145,0.00192211,120]
[358297161,1744901455709,-784.15,0.00193629,120]
[358297162,1744901455719,-500.0,0.00193629,120]
[358297163,1744901455729,-500.0,0.00193629,120]
[358297164,1744901455738,-890.96,0.00193629,120]
[358297165,1744901455747,-500.0,0.00193629,120]
[358297166,1744901455757,-500.0,0.00193629,120]
[358297167,1744901455766,-564.86,0.00193629,120]
[358297168,1744901455776,-500.0,0.00193629,120]
[358297169,1744901455786,-500.0,0.00193629,120]
[358297170,1744901455796,-500.0,0.00193629,120]
[358297171,1744901455806,-500.0,0.00193629,120]
[358297172,1744901455816,-915.72,0.00193629,120]
[358297173,1744901455825,-903.52,0.00193629,120]
[358297174,1744901455834,-150.0,0.00196835,120]
[358297175,1744901455844,-580.06158395,0.002,120]
[358297176,1744901455853,-500.0,0.002,120]
[358297177,1744901455863,-862.52,0.00202739,120]
[358297178,1744901455873,-500.0,0.00202739,120]
[358297179,1744901455882,-517.9,0.00202739,120]
[358297180,1744901455892,-500.0,0.00202739,120]
[358297181,1744901455901,-150.0,0.00203467,120]
[358297182,1744901455911,-784.15,0.00204588,120]
[358297183,1744901455920,-500.0,0.00204588,120]
[358297184,1744901455931,-500.0,0.00204588,120]
[358297185,1744901455940,-890.96,0.00204588,120]
[358297186,1744901455950,-500.0,0.00204588,120]
[358297187,1744901455959,-500.0,0.00204588,120]
[358297188,1744901455969,-564.86,0.00204588,120]
[358297189,1744901455978,-500.0,0.00204588,120]
[358297190,1744901455988,-354.98,0.00204588,120]
[358297191,1744901455996,-500.0,0.00204588,120]
[358297192,1744901456007,-500.0,0.00204588,120]
[358297193,1744901456015,-915.72,0.00204588,120]
[358297194,1744901456024,-903.52,0.00204588,120]
[358297195,1744901456034,-410.0,0.00210027,120]
[358297196,1744901456044,-862.52,0.00213698,120]
[358297197,1744901456053,-500.0,0.00213698,120]
[358297198,1744901456063,-517.9,0.00213698,120]
[358297199,1744901456073,-500.0,0.00213698,120]
[358297200,1744901456083,-784.15,0.00215547,120]
[358297201,1744901456093,-500.0,0.00215547,120]
[358297202,1744901456103,-500.0,0.00215547,120]
[358297203,1744901456114,-890.96,0.00215547,120]
[358297204,1744901456123,-500.0,0.00215547,120]
[358297205,1744901456133,-625.82,0.00215547,120]
[358297206,1744901456143,-564.86,0.00215547,120]
[358297207,1744901456153,-500.0,0.00215547,120]
[358297208,1744901456163,-500.0,0.00215547,120]
[358297209,1744901456173,-500.0,0.00215547,120]
[358297210,1744901456183,-915.72,0.00215547,120]
[358297211,1744901456193,-903.52,0.00215547,120]
[358297212,1744901456207,-23122.0,0.00221112,120]
[358297213,1744901456217,-862.52,0.00224657,120]
[358297214,1744901456227,-500.0,0.00224657,120]
[358297215,1744901456238,-517.9,0.00224657,120]
[358297216,1744901456250,-500.0,0.00224657,120]
[358297217,1744901456261,-784.15,0.00226506,120]
[358297218,1744901456271,-500.0,0.00226506,120]
[358297219,1744901456284,-500.0,0.00226506,120]
[358297220,1744901456295,-890.96,0.00226506,120]
[358297221,1744901456305,-500.0,0.00226506,120]
[358297222,1744901456315,-564.86,0.00226506,120]
[358297223,1744901456324,-500.0,0.00226506,120]
[358297224,1744901456333,-500.0,0.00226506,120]
[358297225,1744901456343,-500.0,0.00226506,120]
[358297226,1744901456353,-915.72,0.00226506,120]
[358297227,1744901456362,-903.52,0.00226506,120]
[358297228,1744901456371,-305.75,0.002281,87]
[358297229,1744901456381,-305.75,0.002281,87]
[358297230,1744901456390,-305.75,0.002281,87]
[358297231,1744901456400,-305.75,0.002281,87]
[358297232,1744901456410,-305.75,0.002281,87]
[358297233,1744901456419,-305.75,0.002281,87]
[358297234,1744901456428,-305.75,0.002281,87]
[358297235,1744901456438,-305.75,0.002281,87]
[358297236,1744901456447,-305.75,0.002281,87]
[358297237,1744901456457,-305.75,0.002281,87]
[358297238,1744901456466,-305.75,0.002281,87]
[358297239,1744901456476,-305.75,0.002281,87]
[358297240,1744901456485,-305.75,0.002281,87]
[358297241,1744901456495,-305.75,0.002281,87]
[358297242,1744901456504,-305.75,0.002281,87]
[358297243,1744901456514,-305.75,0.002281,87]
[358297244,1744901456524,-305.75,0.002281,87]
[358297245,1744901456534,-305.75,0.002281,87]
[358297246,1744901456544,-305.75,0.002281,87]
[358297247,1744901456554,-305.75,0.002281,87]
[358297248,1744901456564,-305.75,0.002281,87]
[358297249,1744901456574,-305.75,0.002281,87]
[358297250,1744901456584,-305.75,0.002281,87]
[358297251,1744901456594,-305.75,0.002281,87]
[358297252,1744901456603,-29615.24,0.00229,60]
[358297253,1744901456613,-862.52,0.00235616,120]
[358297254,1744901456623,-517.9,0.00235616,120]
[358297255,1744901456633,-500.0,0.00235616,120]
[358297256,1744901456642,-784.15,0.00237465,120]
[358297257,1744901456651,-500.0,0.00237465,120]
[358297258,1744901456661,-500.0,0.00237465,120]
[358297259,1744901456670,-890.96,0.00237465,120]
[358297260,1744901456679,-500.0,0.00237465,120]
[358297261,1744901456689,-564.86,0.00237465,120]
[358297262,1744901456698,-500.0,0.00237465,120]
[358297263,1744901456708,-500.0,0.00237465,120]
[358297264,1744901456718,-164.3,0.00237465,120]
[358297265,1744901456728,-915.72,0.00237465,120]
[358297266,1744901456737,-903.52,0.00237465,120]
[358297267,1744901456747,-150.0,0.00238643,120]
[358297268,1744901456757,-1800.0,0.0024,118]
[358297269,1744901456766,-862.52,0.00246575,120]
[358297270,1744901456777,-517.9,0.00246575,120]
[358297271,1744901456787,-500.0,0.00246575,120]
[358297272,1744901456796,-784.15,0.00248424,120]
[358297273,1744901456806,-500.0,0.00248424,120]
[358297274,1744901456816,-500.0,0.00248424,120]
[358297275,1744901456825,-890.96,0.00248424,120]
[358297276,1744901456835,-500.0,0.00248424,120]
[358297277,1744901456854,-564.86,0.00248424,120]
[358297278,1744901456873,-500.0,0.00248424,120]
[358297279,1744901456884,-500.0,0.00248424,120]
[358297280,1744901456895,-915.72,0.00248424,120]
[358297281,1744901456904,-903.52,0.00248424,120]
[358297282,1744901456913,-150.0,0.00250158,120]
[358297283,1744901456923,-500.0,0.00251099,120]
[358297284,1744901456933,-500.0,0.00251099,120]
[358297285,1744901456942,-500.0,0.00251099,120]
[358297286,1744901456952,-500.0,0.00251099,120]
[358297287,1744901456961,-500.0,0.00251099,120]
[358297288,1744901456970,-66250.88261771,0.002511,120]
[358297289,1744901456979,-862.52,0.00257534,120]
[358297290,1744901456991,-517.9,0.00257534,120]
[358297291,1744901457002,-500.0,0.00257534,120]
[358297292,1744901457012,-784.15,0.00259383,120]
[358297293,1744901457021,-500.0,0.00259383,120]
[358297294,1744901457031,-409.89,0.00259383,120]
[358297295,1744901457040,-890.96,0.00259383,120]
[358297296,1744901457049,-500.0,0.00259383,120]
[358297297,1744901457059,-564.86,0.00259383,120]
[358297298,1744901457068,-360.53509088,0.00259383,120]
[358297299,1744901457078,-367.14,0.00259383,120]
[358297300,1744901457087,-915.72,0.00259383,120]
[358297301,1744901457098,-903.52,0.00259383,120]
[358297302,1744901457107,-862.52,0.00268493,120]
[358297303,1744901457117,-517.9,0.00268493,120]
[358297304,1744901457127,-500.0,0.00268493,120]
[358297305,1744901457136,-784.15,0.00270341,120]
[358297306,1744901457146,-500.0,0.00270341,120]
[358297307,1744901457156,-890.96,0.00270341,120]
[358297308,1744901457165,-500.0,0.00270341,120]
[358297309,1744901457175,-564.86,0.00270341,120]
[358297310,1744901457185,-915.72,0.00270341,120]
[358297311,1744901457195,-903.52,0.00270341,120]
[358297312,1744901457209,-862.93291381,0.00273972,120]
[358297313,1744901457219,-200.0,0.00273973,120]
[358297314,1744901457229,-862.52,0.00279452,120]
[358297315,1744901457240,-517.9,0.00279452,120]
[358297316,1744901457251,-500.0,0.00279452,120]
[358297317,1744901457261,-784.15,0.002813,120]
[358297318,1744901457271,-500.0,0.002813,120]
[358297319,1744901457283,-890.96,0.002813,120]
[358297320,1744901457293,-500.0,0.002813,120]
[358297321,1744901457303,-564.86,0.002813,120]
[358297322,1744901457314,-915.72,0.002813,120]
[358297323,1744901457323,-903.52,0.002813,120]
[358297324,1744901457333,-862.52,0.0029041,120]
[358297325,1744901457344,-517.9,0.0029041,120]
[358297326,1744901457354,-474.012,0.0029041,120]
[358297327,1744901457363,-22827.95652145,0.00292211,120]
[358297328,1744901457373,-784.15,0.00292259,120]
[358297329,1744901457383,-500.0,0.00292259,120]
[358297330,1744901457392,-890.96,0.00292259,120]
[358297331,1744901457487,-500.0,0.00292259,120]
[358297332,1744901457496,-564.86,0.00292259,120]
[358297333,1744901457506,-915.72,0.00292259,120]
[358297334,1744901457516,-903.52,0.00292259,120]
[358297335,1744901457525,-150.0,0.0029402,120]
[358297336,1744901457535,-500.0,0.00299989,120]
[358297337,1744901457545,-500.0,0.003,120]
[358297338,1744901457555,-862.52,0.00301369,120]
[358297339,1744901457564,-517.9,0.00301369,120]
[358297340,1744901457574,-150.0,0.00301777,120]
[358297341,1744901457584,-784.15,0.00303218,120]
[358297342,1744901457594,-323.69,0.00303218,120]
[358297343,1744901457603,-890.96,0.00303218,120]
[358297344,1744901457613,-500.0,0.00303218,120]
[358297345,1744901457623,-564.86,0.00303218,120]
[358297346,1744901457632,-915.72,0.00303218,120]
[358297347,1744901457642,-903.52,0.00303218,120]
[358297348,1744901457651,-862.52,0.00312328,120]
[358297349,1744901457660,-517.9,0.00312328,120]
[358297350,1744901457670,-784.15,0.00314177,120]
[358297351,1744901457680,-890.96,0.00314177,120]
[358297352,1744901457689,-500.0,0.00314177,120]
[358297353,1744901457699,-564.86,0.00314177,120]
[358297354,1744901457708,-915.72,0.00314177,120]
[358297355,1744901457717,-903.52,0.00314177,120]
[358297356,1744901457726,-23122.0,0.0032,120]
[358297357,1744901457735,-862.52,0.00323287,120]
[358297358,1744901457746,-517.9,0.00323287,120]
[358297359,1744901457755,-784.15,0.00325136,120]
[358297360,1744901457766,-890.96,0.00325136,120]
[358297361,1744901457775,-500.0,0.00325136,120]
[358297362,1744901457785,-564.86,0.00325136,120]
[358297363,1744901457795,-915.72,0.00325136,120]
[358297364,1744901457804,-903.52,0.00325136,120]
[358297365,1744901457813,-150.0,0.00325901,120]
[358297366,1744901457822,-500.0,0.00327893,120]
[358297367,1744901457832,-862.5851944,0.00334246,120]
[358297368,1744901457842,-518.06196998,0.00334246,120]
[358297369,1744901457851,-784.15,0.00336095,120]
[358297370,1744901457861,-890.96,0.00336095,120]
[358297371,1744901457870,-434.35179042,0.00336095,120]
[358297372,1744901457879,-564.86,0.00336095,120]
[358297373,1744901457889,-915.72,0.00336095,120]
[358297374,1744901457898,-903.52,0.00336095,120]
[358297375,1744901457908,-1800.0,0.0034,118]
[358297376,1744901457917,-29615.24,0.00341,120]
[358297377,1744901457927,-784.29629622,0.00347054,120]
[358297378,1744901457936,-891.15,0.00347054,120]
[358297379,1744901457946,-565.02,0.00347054,120]
[358297380,1744901457955,-915.72205631,0.00347054,120]
[358297381,1744901457965,-903.72644503,0.00347054,120]
[358297382,1744901457974,-23122.0,0.0035121,120]
[358297383,1744901457983,-200.0,0.00389536,120]
[358297384,1744901457992,-500.0,0.00399999,120]
[358297385,1744901458002,-500.0,0.00399999,120]
[358297386,1744901458012,-500.0,0.00399999,120]
[358297387,1744901458022,-500.0,0.00399999,120]
[358297388,1744901458031,-500.0,0.00399999,120]
[358297389,1744901458041,-98700.0,0.004,120]
[358297390,1744901458050,-500.0,0.004,120]
[358297391,1744901458060,-305.75,0.004041,87]
[358297392,1744901458069,-305.75,0.004041,87]
[358297393,1744901458078,-305.75,0.004041,87]
[358297394,1744901458088,-305.75,0.004041,87]
[358297395,1744901458097,-305.75,0.004041,87]
[358297396,1744901458107,-305.75,0.004041,87]
[358297397,1744901458116,-305.75,0.004041,87]
[358297398,1744901458123,-305.75,0.004041,87]